[Event "Late-Titled-Tuesday-Blitz-March-05-2024"]
[Site "Chess.com"]
[Date "2024.03.05"]
[Round "4"]
[White "GMG"]
[Black "XDPS"]
[Result "0-1"]
[WhiteElo "2733"]
[BlackElo "2908"]
[TimeControl "180+1"]
[EndTime "14:40:24 PST"]
[Termination "XDPS won on time"]

1. d4 {[%clk 0:02:58.4]} 1... d6 {[%clk 0:02:59.3]} 2. Nf3 {[%clk 0:02:58.3]}
2... g6 {[%clk 0:03:00]} 3. g3 {[%clk 0:02:58.7]} 3... Bg7 {[%clk 0:03:00.7]} 4.
Bg2 {[%clk 0:02:59.5]} 4... Nd7 {[%clk 0:02:59.7]} 5. c4 {[%clk 0:02:57.8]} 5...
e5 {[%clk 0:02:58.4]} 6. Nc3 {[%clk 0:02:58.2]} 6... Ne7 {[%clk 0:02:58.4]} 7.
e4 {[%clk 0:02:55.2]} 7... O-O {[%clk 0:02:58]} 8. O-O {[%clk 0:02:50.3]} 8...
h6 {[%clk 0:02:56.7]} 9. Be3 {[%clk 0:02:38.5]} 9... Kh7 {[%clk 0:02:55.9]} 10.
Qd2 {[%clk 0:02:25.9]} 10... a6 {[%clk 0:02:51.9]} 11. Rfd1 {[%clk 0:02:19.1]}
11... Nc6 {[%clk 0:02:48.2]} 12. Nd5 {[%clk 0:01:51.3]} 12... Re8 {[%clk
0:02:39.7]} 13. b4 {[%clk 0:01:40.2]} 13... exd4 {[%clk 0:02:35.5]} 14. Nxd4
{[%clk 0:01:41.1]} 14... Nce5 {[%clk 0:02:36.1]} 15. Rac1 {[%clk 0:01:36.9]}
15... Ng4 {[%clk 0:02:32.6]} 16. Bf4 {[%clk 0:01:26.5]} 16... c6 {[%clk
0:02:02.1]} 17. Ne3 {[%clk 0:01:19.1]} 17... Ngf6 {[%clk 0:02:01.3]} 18. Qc2
{[%clk 0:01:11.9]} 18... Qe7 {[%clk 0:01:54.3]} 19. Ndf5 {[%clk 0:01:05.3]}
19... gxf5 {[%clk 0:01:54.4]} 20. Nxf5 {[%clk 0:01:05.9]} 20... Qf8 {[%clk
0:01:35.8]} 21. Bxd6 {[%clk 0:01:00.9]} 21... Qg8 {[%clk 0:01:36]} 22. e5 {[%clk
0:00:58]} 22... Kh8 {[%clk 0:01:25.3]} 23. exf6 {[%clk 0:00:43.5]} 23... Nxf6
{[%clk 0:01:21.7]} 24. Nxg7 {[%clk 0:00:40.8]} 24... Kxg7 {[%clk 0:01:21.7]} 25.
Re1 {[%clk 0:00:37.3]} 25... Qh7 {[%clk 0:01:14.8]} 26. Qc3 {[%clk 0:00:34.1]}
26... Bf5 {[%clk 0:01:05.4]} 27. Re7 {[%clk 0:00:25.3]} 27... Rxe7 {[%clk
0:00:59]} 28. Bxe7 {[%clk 0:00:26.2]} 28... Qg6 {[%clk 0:00:59.7]} 29. Rd1
{[%clk 0:00:23.9]} 29... Re8 {[%clk 0:00:57.5]} 30. Qe5 {[%clk 0:00:21.7]} 30...
Be6 {[%clk 0:00:54.9]} 31. Qc5 {[%clk 0:00:16.9]} 31... Ng8 {[%clk 0:00:43.8]}
32. Bd6 {[%clk 0:00:16.4]} 32... Kh7 {[%clk 0:00:41.7]} 33. Qd4 {[%clk 0:00:14]}
33... Bf5 {[%clk 0:00:39.7]} 34. Bf4 {[%clk 0:00:13.4]} 34... Nf6 {[%clk
0:00:38.8]} 35. h3 {[%clk 0:00:13.1]} 35... Be6 {[%clk 0:00:30.3]} 36. Kh2
{[%clk 0:00:10.6]} 36... Bf5 {[%clk 0:00:22.5]} 37. Rd2 {[%clk 0:00:10.5]} 37...
Be4 {[%clk 0:00:20.5]} 38. f3 {[%clk 0:00:10.3]} 38... Bf5 {[%clk 0:00:20]} 39.
g4 {[%clk 0:00:10.9]} 39... Bc8 {[%clk 0:00:20.3]} 40. Be5 {[%clk 0:00:10.7]}
40... Nd7 {[%clk 0:00:20.3]} 41. Bg3 {[%clk 0:00:10.9]} 41... Nf8 {[%clk
0:00:21]} 42. Qd3 {[%clk 0:00:09.9]} 42... f5 {[%clk 0:00:21.3]} 43. a4 {[%clk
0:00:09.3]} 43... Ne6 {[%clk 0:00:21.8]} 44. Re2 {[%clk 0:00:09.1]} 44... Ng7
{[%clk 0:00:20.4]} 45. Rxe8 {[%clk 0:00:08.8]} 45... Qxe8 {[%clk 0:00:21.3]} 46.
Qd4 {[%clk 0:00:08.9]} 46... Qe2 {[%clk 0:00:18.9]} 47. Be5 {[%clk 0:00:08.3]}
47... Ne6 {[%clk 0:00:18]} 48. Qd6 {[%clk 0:00:08.7]} 48... fxg4 {[%clk
0:00:15.2]} 49. fxg4 {[%clk 0:00:08.4]} 49... Qxc4 {[%clk 0:00:15.5]} 50. Qe7+
{[%clk 0:00:07.7]} 50... Kg6 {[%clk 0:00:16]} 51. Qf6+ {[%clk 0:00:08]} 51...
Kh7 {[%clk 0:00:16]} 52. Qf5+ {[%clk 0:00:08.5]} 52... Kg8 {[%clk 0:00:15.9]}
53. Be4 {[%clk 0:00:09]} 53... Qe2+ {[%clk 0:00:15.7]} 54. Kg3 {[%clk
0:00:09.4]} 54... Qe3+ {[%clk 0:00:16]} 55. Kh4 {[%clk 0:00:08.5]} 55... Qg5+
{[%clk 0:00:10.9]} 56. Qxg5+ {[%clk 0:00:08.7]} 56... Nxg5 {[%clk 0:00:11.8]}
57. Bd3 {[%clk 0:00:08.6]} 57... Nf3+ {[%clk 0:00:12.1]} 58. Kh5 {[%clk
0:00:07.8]} 58... Nxe5 {[%clk 0:00:13]} 0-1

[Event "Late-Titled-Tuesday-Blitz-March-05-2024"]
[Site "Chess.com"]
[Date "2024.03.05"]
[Round "4"]
[White "Jospem"]
[Black "NovakCabarkapa"]
[Result "1-0"]
[WhiteElo "3103"]
[BlackElo "2819"]
[TimeControl "180+1"]
[EndTime "14:40:27 PST"]
[Termination "Jospem won by resignation"]

1. e4 {[%clk 0:03:00.9]} 1... e6 {[%clk 0:02:59]} 2. d4 {[%clk 0:03:01.2]} 2...
d5 {[%clk 0:02:59.6]} 3. exd5 {[%clk 0:03:02.1]} 3... exd5 {[%clk 0:02:59.9]} 4.
Nf3 {[%clk 0:03:03]} 4... Bd6 {[%clk 0:02:59.8]} 5. h3 {[%clk 0:03:03.7]} 5...
Nf6 {[%clk 0:02:57.7]} 6. c4 {[%clk 0:03:04.3]} 6... O-O {[%clk 0:02:57.6]} 7.
c5 {[%clk 0:03:02.5]} 7... Re8+ {[%clk 0:02:57.8]} 8. Be2 {[%clk 0:03:03]} 8...
Bf8 {[%clk 0:02:58]} 9. O-O {[%clk 0:03:03.7]} 9... b6 {[%clk 0:02:58.5]} 10.
cxb6 {[%clk 0:03:04.6]} 10... axb6 {[%clk 0:02:59.3]} 11. Nc3 {[%clk 0:03:05.5]}
11... Ne4 {[%clk 0:02:56.4]} 12. Bb5 {[%clk 0:02:57]} 12... c6 {[%clk
0:02:53.1]} 13. Bd3 {[%clk 0:02:57.2]} 13... Ba6 {[%clk 0:02:52.5]} 14. Re1
{[%clk 0:02:42.1]} 14... Nxc3 {[%clk 0:02:09.5]} 15. Rxe8 {[%clk 0:02:33.4]}
15... Qxe8 {[%clk 0:01:56.8]} 16. bxc3 {[%clk 0:02:33.6]} 16... Bxd3 {[%clk
0:01:55.9]} 17. Qxd3 {[%clk 0:02:34.5]} 17... Qe4 {[%clk 0:01:40.9]} 18. Qd1
{[%clk 0:02:19.7]} 18... Nd7 {[%clk 0:01:35.4]} 19. Be3 {[%clk 0:02:19.8]} 19...
b5 {[%clk 0:01:32.2]} 20. a4 {[%clk 0:02:13.5]} 20... bxa4 {[%clk 0:01:11.6]}
21. Rxa4 {[%clk 0:02:12.2]} 21... Rb8 {[%clk 0:01:12.1]} 22. Ra1 {[%clk
0:02:10.9]} 22... h6 {[%clk 0:01:11.1]} 23. Qa4 {[%clk 0:02:06.8]} 23... Qg6
{[%clk 0:01:05.1]} 24. Bf4 {[%clk 0:02:00.4]} 24... Rb1+ {[%clk 0:00:56.4]} 25.
Rxb1 {[%clk 0:01:59.1]} 25... Qxb1+ {[%clk 0:00:57.3]} 26. Kh2 {[%clk
0:01:59.8]} 26... Qb7 {[%clk 0:00:56.4]} 27. g3 {[%clk 0:01:49.1]} 27... c5
{[%clk 0:00:49.5]} 28. dxc5 {[%clk 0:01:36]} 28... Nxc5 {[%clk 0:00:46.1]} 29.
Qe8 {[%clk 0:01:35.9]} 29... Ne4 {[%clk 0:00:40.5]} 30. Be3 {[%clk 0:01:32]}
30... Nd6 {[%clk 0:00:29.8]} 31. Qe5 {[%clk 0:01:25.6]} 31... Nc4 {[%clk
0:00:27.6]} 32. Qd4 {[%clk 0:01:21.9]} 32... g6 {[%clk 0:00:24]} 33. Qd3 {[%clk
0:01:05.6]} 33... Bg7 {[%clk 0:00:19.8]} 34. Bd4 {[%clk 0:01:05]} 34... Qb2
{[%clk 0:00:18.4]} 35. Kg2 {[%clk 0:01:03.4]} 35... Qb7 {[%clk 0:00:12.8]} 36.
Nh2 {[%clk 0:00:57.7]} 36... Bxd4 {[%clk 0:00:11.6]} 37. Qxd4 {[%clk 0:00:58.6]}
37... h5 {[%clk 0:00:11]} 38. Nf3 {[%clk 0:00:57.3]} 38... Nd6 {[%clk
0:00:11.2]} 39. Qe5 {[%clk 0:00:40.3]} 39... Nf5 {[%clk 0:00:08.5]} 40. g4
{[%clk 0:00:37.5]} 40... Ng7 {[%clk 0:00:05.5]} 41. Nd4 {[%clk 0:00:32.6]} 41...
Qd7 {[%clk 0:00:05.5]} 42. f3 {[%clk 0:00:29.3]} 42... hxg4 {[%clk 0:00:05.9]}
43. hxg4 {[%clk 0:00:30.2]} 43... Ne6 {[%clk 0:00:06.4]} 44. Ne2 {[%clk
0:00:19.1]} 44... Qc7 {[%clk 0:00:03.7]} 45. Qxd5 {[%clk 0:00:14.8]} 45... Qe7
{[%clk 0:00:03.3]} 46. Qe5 {[%clk 0:00:13.6]} 46... Qd7 {[%clk 0:00:03.6]} 47.
Qe3 {[%clk 0:00:12.9]} 47... Qd5 {[%clk 0:00:03.9]} 48. Nf4 {[%clk 0:00:11.8]}
48... Qa2+ {[%clk 0:00:03.2]} 49. Kg3 {[%clk 0:00:12.5]} 49... Ng7 {[%clk
0:00:02.9]} 50. Qd4 {[%clk 0:00:08.8]} 50... Qa8 {[%clk 0:00:02.5]} 51. Nd5
{[%clk 0:00:07.9]} 51... Qb8+ {[%clk 0:00:02.9]} 52. Qf4 {[%clk 0:00:06.3]}
52... Qd8 {[%clk 0:00:03.6]} 53. Nf6+ {[%clk 0:00:06.4]} 53... Kf8 {[%clk
0:00:04.2]} 54. Qe5 {[%clk 0:00:05.4]} 54... Qe7 {[%clk 0:00:03.5]} 55. Qb8+
{[%clk 0:00:05.2]} 55... Ne8 {[%clk 0:00:03.3]} 56. Nxe8 {[%clk 0:00:05.7]}
56... Qe1+ {[%clk 0:00:02.9]} 57. Kg2 {[%clk 0:00:05.6]} 57... Qe2+ {[%clk
0:00:03.2]} 58. Kg3 {[%clk 0:00:05.5]} 58... Qe1+ {[%clk 0:00:03.8]} 59. Kf4
{[%clk 0:00:06.2]} 59... Qd2+ {[%clk 0:00:03.4]} 60. Ke4 {[%clk 0:00:05.7]}
60... Qe2+ {[%clk 0:00:03]} 61. Kd4 {[%clk 0:00:05.3]} 61... Qf2+ {[%clk
0:00:03.5]} 62. Kc4 {[%clk 0:00:04.9]} 62... Qa2+ {[%clk 0:00:03.8]} 63. Kd3
{[%clk 0:00:03.9]} 63... Qb1+ {[%clk 0:00:03.8]} 64. Qxb1 {[%clk 0:00:03.5]} 1-0

[Event "Late-Titled-Tuesday-Blitz-March-05-2024"]
[Site "Chess.com"]
[Date "2024.03.05"]
[Round "4"]
[White "Genghis_K"]
[Black "Rud_2008"]
[Result "0-1"]
[WhiteElo "2933"]
[BlackElo "2764"]
[TimeControl "180+1"]
[EndTime "14:40:28 PST"]
[Termination "Rud_2008 won by resignation"]

1. e4 {[%clk 0:02:51.5]} 1... e5 {[%clk 0:03:00]} 2. Nf3 {[%clk 0:02:51.3]} 2...
Nc6 {[%clk 0:03:00.3]} 3. d4 {[%clk 0:02:51.6]} 3... exd4 {[%clk 0:03:00.4]} 4.
Nxd4 {[%clk 0:02:52.5]} 4... Bc5 {[%clk 0:03:00.5]} 5. Nb3 {[%clk 0:02:52.6]}
5... Bb6 {[%clk 0:03:00.7]} 6. Nc3 {[%clk 0:02:52.9]} 6... Nf6 {[%clk
0:03:00.2]} 7. Qe2 {[%clk 0:02:53.1]} 7... a5 {[%clk 0:02:59.7]} 8. Be3 {[%clk
0:02:30.9]} 8... Bxe3 {[%clk 0:02:57]} 9. Qxe3 {[%clk 0:02:30.7]} 9... a4 {[%clk
0:02:55.7]} 10. Nd4 {[%clk 0:02:30.1]} 10... Nxd4 {[%clk 0:02:55.8]} 11. Qxd4
{[%clk 0:02:29.1]} 11... a3 {[%clk 0:02:49.8]} 12. b3 {[%clk 0:02:26.6]} 12...
d6 {[%clk 0:02:45.2]} 13. O-O-O {[%clk 0:02:18.9]} 13... Qe7 {[%clk 0:02:13.7]}
14. Bb5+ {[%clk 0:02:09.1]} 14... c6 {[%clk 0:02:02.7]} 15. Nd5 {[%clk
0:01:58.6]} 15... Nxd5 {[%clk 0:01:57.6]} 16. exd5 {[%clk 0:01:57.4]} 16... O-O
{[%clk 0:01:54.6]} 17. dxc6 {[%clk 0:01:54.4]} 17... Qg5+ {[%clk 0:01:54.7]} 18.
f4 {[%clk 0:01:01.5]} 18... Qxb5 {[%clk 0:01:54.5]} 19. cxb7 {[%clk 0:01:02.2]}
19... Bxb7 {[%clk 0:01:49.3]} 20. Qxd6 {[%clk 0:01:02.4]} 20... Rfc8 {[%clk
0:01:46.3]} 21. Rhe1 {[%clk 0:00:59.6]} 21... Qf5 {[%clk 0:01:42.5]} 22. Rd2
{[%clk 0:00:57.4]} 22... h6 {[%clk 0:01:39.1]} 23. Re7 {[%clk 0:00:51]} 23...
Ra6 {[%clk 0:01:05.5]} 24. Qe5 {[%clk 0:00:47.8]} 24... Qxe5 {[%clk 0:01:00.7]}
25. Rxe5 {[%clk 0:00:48.7]} 25... Re6 {[%clk 0:00:38.5]} 26. Rxe6 {[%clk
0:00:45.8]} 26... fxe6 {[%clk 0:00:39.4]} 27. c4 {[%clk 0:00:46.4]} 27... Be4
{[%clk 0:00:35]} 28. Re2 {[%clk 0:00:44.1]} 28... Bf5 {[%clk 0:00:34]} 29. Kd2
{[%clk 0:00:44.3]} 29... Rd8+ {[%clk 0:00:29.3]} 30. Kc3 {[%clk 0:00:43.8]}
30... Kf7 {[%clk 0:00:26.7]} 31. g3 {[%clk 0:00:37.5]} 31... Ke7 {[%clk
0:00:25]} 32. Kb4 {[%clk 0:00:37.3]} 32... Ra8 {[%clk 0:00:23.9]} 33. Kc3 {[%clk
0:00:34.3]} 33... Kd6 {[%clk 0:00:23.5]} 34. b4 {[%clk 0:00:32.2]} 34... Kc6
{[%clk 0:00:20.6]} 35. Rd2 {[%clk 0:00:32.8]} 35... g5 {[%clk 0:00:17.1]} 36.
fxg5 {[%clk 0:00:25.2]} 36... hxg5 {[%clk 0:00:18]} 37. Re2 {[%clk 0:00:25.9]}
37... Rd8 {[%clk 0:00:17.6]} 38. b5+ {[%clk 0:00:23.3]} 38... Kb6 {[%clk
0:00:14.7]} 39. Kb4 {[%clk 0:00:21.1]} 39... Rd4 {[%clk 0:00:15.3]} 40. h4
{[%clk 0:00:16.8]} 40... gxh4 {[%clk 0:00:15.1]} 41. gxh4 {[%clk 0:00:17.7]}
41... Rxh4 {[%clk 0:00:13.5]} 42. Rd2 {[%clk 0:00:18.1]} 42... Kc7 {[%clk
0:00:12.3]} 43. Rd1 {[%clk 0:00:12.9]} 43... e5 {[%clk 0:00:09.4]} 44. Rd5
{[%clk 0:00:10.1]} 44... Re4 {[%clk 0:00:02.9]} 45. Kxa3 {[%clk 0:00:09.9]}
45... Be6 {[%clk 0:00:03.5]} 46. Rc5+ {[%clk 0:00:09.9]} 46... Kb7 {[%clk
0:00:04.2]} 47. Rc6 {[%clk 0:00:10.3]} 47... Bxc4 {[%clk 0:00:04.2]} 48. Rc5
{[%clk 0:00:03.3]} 48... Kb6 {[%clk 0:00:03.6]} 49. Rc6+ {[%clk 0:00:02.2]}
49... Kxb5 {[%clk 0:00:04.1]} 50. Rc8 {[%clk 0:00:02.7]} 50... Re3+ {[%clk
0:00:03]} 51. Kb2 {[%clk 0:00:03.3]} 51... e4 {[%clk 0:00:02.4]} 52. Rb8+ {[%clk
0:00:04.2]} 52... Kc5 {[%clk 0:00:03]} 53. Kc2 {[%clk 0:00:04.6]} 53... Bb5
{[%clk 0:00:03.4]} 54. Kd2 {[%clk 0:00:04.8]} 54... Ra3 {[%clk 0:00:03.6]} 55.
Rc8+ {[%clk 0:00:04.7]} 55... Bc6 {[%clk 0:00:04.1]} 56. Ke2 {[%clk 0:00:03.6]}
56... Rxa2+ {[%clk 0:00:04.6]} 57. Ke3 {[%clk 0:00:04.5]} 57... Ra3+ {[%clk
0:00:05.5]} 58. Kf4 {[%clk 0:00:05.1]} 58... Rf3+ {[%clk 0:00:06.2]} 59. Kg4
{[%clk 0:00:05.6]} 59... Rd3 {[%clk 0:00:05.8]} 60. Kf4 {[%clk 0:00:05.7]} 60...
e3 {[%clk 0:00:05.8]} 61. Rb8 {[%clk 0:00:04.6]} 61... e2 {[%clk 0:00:05.2]} 62.
Re8 {[%clk 0:00:03.8]} 62... Bxe8 {[%clk 0:00:03.3]} 0-1

[Event "Late-Titled-Tuesday-Blitz-March-05-2024"]
[Site "Chess.com"]
[Date "2024.03.05"]
[Round "4"]
[White "jinbojinbo"]
[Black "the_blue_pill"]
[Result "1-0"]
[WhiteElo "2640"]
[BlackElo "2419"]
[TimeControl "180+1"]
[EndTime "14:40:30 PST"]
[Termination "jinbojinbo won by resignation"]

1. Nf3 {[%clk 0:03:00.9]} 1... d5 {[%clk 0:02:59.8]} 2. e3 {[%clk 0:03:00.6]}
2... Nf6 {[%clk 0:02:49.7]} 3. c4 {[%clk 0:03:00]} 3... e6 {[%clk 0:02:48.5]} 4.
b3 {[%clk 0:02:58.6]} 4... c5 {[%clk 0:02:48.6]} 5. Bb2 {[%clk 0:02:56.4]} 5...
Nc6 {[%clk 0:02:48.6]} 6. cxd5 {[%clk 0:02:55.7]} 6... exd5 {[%clk 0:02:48.9]}
7. Bb5 {[%clk 0:02:54.5]} 7... Bd6 {[%clk 0:02:45.6]} 8. O-O {[%clk 0:02:52.3]}
8... O-O {[%clk 0:02:44.7]} 9. d4 {[%clk 0:02:51.6]} 9... cxd4 {[%clk
0:02:44.6]} 10. Nxd4 {[%clk 0:02:50.9]} 10... Qc7 {[%clk 0:02:33.2]} 11. h3
{[%clk 0:02:46.6]} 11... Ne4 {[%clk 0:02:25.9]} 12. Nd2 {[%clk 0:02:10.7]} 12...
Nxd4 {[%clk 0:02:03.2]} 13. Bxd4 {[%clk 0:02:06.1]} 13... Nc3 {[%clk 0:01:55.1]}
14. Bxc3 {[%clk 0:02:00.9]} 14... Qxc3 {[%clk 0:01:56]} 15. Nf3 {[%clk
0:01:57.7]} 15... Be6 {[%clk 0:01:44.2]} 16. Rc1 {[%clk 0:01:44.8]} 16... Qa5
{[%clk 0:01:40.5]} 17. a4 {[%clk 0:01:44.3]} 17... Rac8 {[%clk 0:01:32]} 18. Bd3
{[%clk 0:01:39.8]} 18... Qb4 {[%clk 0:01:22.8]} 19. Nd4 {[%clk 0:01:34.8]} 19...
Be5 {[%clk 0:01:15.4]} 20. Bxh7+ {[%clk 0:01:29.5]} 20... Kxh7 {[%clk
0:01:07.7]} 21. Qh5+ {[%clk 0:01:30.4]} 21... Kg8 {[%clk 0:01:08.4]} 22. Qxe5
{[%clk 0:01:30.1]} 22... Qb6 {[%clk 0:00:41.5]} 23. h4 {[%clk 0:01:07.9]} 23...
a6 {[%clk 0:00:19.8]} 24. h5 {[%clk 0:01:06.7]} 24... Rfe8 {[%clk 0:00:17.7]}
25. Qg5 {[%clk 0:00:56.4]} 25... Qd6 {[%clk 0:00:13.8]} 26. h6 {[%clk
0:00:54.7]} 26... Qf8 {[%clk 0:00:13.9]} 27. hxg7 {[%clk 0:00:41]} 27... Qxg7
{[%clk 0:00:12.8]} 28. Qf4 {[%clk 0:00:41.6]} 28... Qg6 {[%clk 0:00:12.5]} 29.
Rfd1 {[%clk 0:00:37.7]} 29... Kg7 {[%clk 0:00:12]} 30. Rxc8 {[%clk 0:00:31.2]}
30... Rxc8 {[%clk 0:00:10.9]} 31. Qe5+ {[%clk 0:00:30.2]} 31... Qf6 {[%clk
0:00:10.2]} 32. Qxf6+ {[%clk 0:00:20.4]} 32... Kxf6 {[%clk 0:00:11.1]} 33. f3
{[%clk 0:00:18.6]} 33... Rc3 {[%clk 0:00:11.1]} 34. Kf2 {[%clk 0:00:18.5]} 34...
Kg7 {[%clk 0:00:09.7]} 35. g4 {[%clk 0:00:18.6]} 35... Kf6 {[%clk 0:00:09.9]}
36. Rd2 {[%clk 0:00:18.7]} 36... Ke5 {[%clk 0:00:09.9]} 37. Rc2 {[%clk
0:00:18.8]} 37... Rxc2+ {[%clk 0:00:08.2]} 38. Nxc2 {[%clk 0:00:19.7]} 38... d4
{[%clk 0:00:06.2]} 39. Nxd4 {[%clk 0:00:20]} 39... Bd5 {[%clk 0:00:06.3]} 40.
Ke2 {[%clk 0:00:19.3]} 40... a5 {[%clk 0:00:06.5]} 41. Kd3 {[%clk 0:00:18.3]}
41... b6 {[%clk 0:00:07]} 42. f4+ {[%clk 0:00:18.5]} 42... Kd6 {[%clk
0:00:06.8]} 43. e4 {[%clk 0:00:17.6]} 43... Bb7 {[%clk 0:00:05.5]} 44. Nf5+
{[%clk 0:00:17.2]} 44... Kc5 {[%clk 0:00:05.8]} 45. Nd4 {[%clk 0:00:11.7]} 45...
Ba6+ {[%clk 0:00:06]} 46. Ke3 {[%clk 0:00:11.5]} 46... Kb4 {[%clk 0:00:06.3]}
47. e5 {[%clk 0:00:11.8]} 47... Bb7 {[%clk 0:00:06.1]} 48. f5 {[%clk 0:00:09.8]}
48... Bd5 {[%clk 0:00:06.8]} 49. g5 {[%clk 0:00:09.1]} 49... Kc5 {[%clk
0:00:06.5]} 50. e6 {[%clk 0:00:07.4]} 50... fxe6 {[%clk 0:00:06.8]} 51. Nxe6+
{[%clk 0:00:07.2]} 51... Kd6 {[%clk 0:00:05.1]} 52. Nd4 {[%clk 0:00:06]} 52...
Ke5 {[%clk 0:00:05.5]} 53. f6 {[%clk 0:00:04.2]} 53... Bf7 {[%clk 0:00:04]} 54.
Nf3+ {[%clk 0:00:03.4]} 54... Kf5 {[%clk 0:00:04.1]} 55. Kd4 {[%clk 0:00:03.1]}
55... Bxb3 {[%clk 0:00:03.6]} 56. Kc3 {[%clk 0:00:03.4]} 56... Bd5 {[%clk
0:00:03.8]} 57. Kd4 {[%clk 0:00:03.5]} 57... Bxf3 {[%clk 0:00:03.3]} 58. f7
{[%clk 0:00:03]} 58... Kxg5 {[%clk 0:00:02.8]} 59. f8=Q {[%clk 0:00:03.9]} 59...
Bg4 {[%clk 0:00:03.3]} 60. Qg8+ {[%clk 0:00:03.9]} 1-0

[Event "Late-Titled-Tuesday-Blitz-March-05-2024"]
[Site "Chess.com"]
[Date "2024.03.05"]
[Round "4"]
[White "Rodalquilar"]
[Black "Abduzhaparov"]
[Result "0-1"]
[WhiteElo "2775"]
[BlackElo "2451"]
[TimeControl "180+1"]
[EndTime "14:40:34 PST"]
[Termination "Abduzhaparov won on time"]

1. d4 {[%clk 0:03:00.9]} 1... d6 {[%clk 0:03:00.9]} 2. e4 {[%clk 0:03:00.7]}
2... Nf6 {[%clk 0:03:01.8]} 3. Nc3 {[%clk 0:03:00.9]} 3... e5 {[%clk 0:03:02.7]}
4. Nf3 {[%clk 0:03:01.4]} 4... exd4 {[%clk 0:03:02.3]} 5. Nxd4 {[%clk
0:03:01.5]} 5... Be7 {[%clk 0:03:03.2]} 6. g3 {[%clk 0:03:01]} 6... O-O {[%clk
0:03:04.1]} 7. Bg2 {[%clk 0:03:01.4]} 7... Re8 {[%clk 0:03:04.7]} 8. O-O {[%clk
0:03:01.8]} 8... Bf8 {[%clk 0:03:05.3]} 9. h3 {[%clk 0:03:02]} 9... Nbd7 {[%clk
0:03:05.9]} 10. Re1 {[%clk 0:03:01.8]} 10... Nc5 {[%clk 0:03:05.9]} 11. b3
{[%clk 0:02:56.9]} 11... a5 {[%clk 0:03:04.8]} 12. a4 {[%clk 0:02:56.9]} 12...
c6 {[%clk 0:03:05.1]} 13. Bb2 {[%clk 0:02:57.2]} 13... Qb6 {[%clk 0:02:57.7]}
14. Qd2 {[%clk 0:02:54.6]} 14... Bd7 {[%clk 0:02:57.8]} 15. Rad1 {[%clk
0:02:54.3]} 15... Rad8 {[%clk 0:02:58.2]} 16. Kh2 {[%clk 0:02:54]} 16... Bc8
{[%clk 0:02:57.4]} 17. Qc1 {[%clk 0:02:42.1]} 17... g6 {[%clk 0:02:53]} 18. f3
{[%clk 0:02:11.1]} 18... Bg7 {[%clk 0:02:52.4]} 19. Nde2 {[%clk 0:02:11.6]}
19... Ne6 {[%clk 0:02:29.8]} 20. Qa1 {[%clk 0:02:04.1]} 20... Nh5 {[%clk
0:02:26.7]} 21. Rf1 {[%clk 0:01:57]} 21... Qe3 {[%clk 0:02:23.8]} 22. Bc1 {[%clk
0:01:52.9]} 22... Qb6 {[%clk 0:02:22.7]} 23. Bb2 {[%clk 0:01:52.8]} 23... Qe3
{[%clk 0:02:22.4]} 24. Qc1 {[%clk 0:01:47.7]} 24... Qb6 {[%clk 0:02:16.5]} 25.
Nb1 {[%clk 0:01:44.8]} 25... Nc5 {[%clk 0:02:05.6]} 26. Bxg7 {[%clk 0:01:44.4]}
26... Nxg7 {[%clk 0:02:06.5]} 27. Nf4 {[%clk 0:01:32.9]} 27... Nce6 {[%clk
0:02:04.7]} 28. Nd3 {[%clk 0:01:27.6]} 28... d5 {[%clk 0:02:02]} 29. e5 {[%clk
0:01:27.8]} 29... Nf5 {[%clk 0:01:57.7]} 30. Rde1 {[%clk 0:01:24.1]} 30... Nc5
{[%clk 0:01:53.4]} 31. Nf4 {[%clk 0:01:16.6]} 31... Qc7 {[%clk 0:01:44.6]} 32.
Qa3 {[%clk 0:00:54]} 32... b6 {[%clk 0:01:39.8]} 33. b4 {[%clk 0:00:53.8]} 33...
axb4 {[%clk 0:01:38.8]} 34. Qxb4 {[%clk 0:00:54.7]} 34... h5 {[%clk 0:01:16.1]}
35. a5 {[%clk 0:00:49.8]} 35... h4 {[%clk 0:01:04.4]} 36. axb6 {[%clk 0:00:37]}
36... hxg3+ {[%clk 0:00:59.9]} 37. Kh1 {[%clk 0:00:37.4]} 37... Qe7 {[%clk
0:00:58.4]} 38. Nd2 {[%clk 0:00:21.1]} 38... Ba6 {[%clk 0:00:58]} 39. Rg1 {[%clk
0:00:20.3]} 39... Ne4 {[%clk 0:00:56.8]} 40. Rxe4 {[%clk 0:00:15.7]} 40... dxe4
{[%clk 0:00:54.7]} 41. Qxe7 {[%clk 0:00:16.4]} 41... Rxe7 {[%clk 0:00:51.5]} 42.
Nxe4 {[%clk 0:00:17.1]} 42... Rxe5 {[%clk 0:00:50.6]} 43. Ra1 {[%clk 0:00:14.8]}
43... Ra8 {[%clk 0:00:42.3]} 44. Bf1 {[%clk 0:00:11.6]} 44... Bb7 {[%clk
0:00:40.4]} 45. Rxa8+ {[%clk 0:00:11.1]} 45... Bxa8 {[%clk 0:00:41.3]} 46. Nf6+
{[%clk 0:00:07.3]} 46... Kg7 {[%clk 0:00:35.3]} 47. Ng4 {[%clk 0:00:07.8]} 47...
Ra5 {[%clk 0:00:31.7]} 48. Kg1 {[%clk 0:00:06.4]} 48... Ra1 {[%clk 0:00:29.8]}
49. c4 {[%clk 0:00:06.7]} 49... c5 {[%clk 0:00:29.4]} 50. Nd3 {[%clk 0:00:05.9]}
50... Bxf3 {[%clk 0:00:25.9]} 51. Nxc5 {[%clk 0:00:05.2]} 51... g2 {[%clk
0:00:25.7]} 52. Nh2 {[%clk 0:00:04.6]} 52... gxf1=Q+ {[%clk 0:00:22.9]} 53. Nxf1
{[%clk 0:00:05.5]} 53... Bc6 {[%clk 0:00:20.2]} 54. Kf2 {[%clk 0:00:04.4]} 54...
Rb1 {[%clk 0:00:19.8]} 55. b7 {[%clk 0:00:03.5]} 55... Bxb7 {[%clk 0:00:19.3]}
56. Nd2 {[%clk 0:00:03.8]} 56... Rb2 {[%clk 0:00:19.1]} 57. Ke1 {[%clk
0:00:04.4]} 57... Bc6 {[%clk 0:00:18.5]} 58. Nd3 {[%clk 0:00:04.4]} 58... Ra2
{[%clk 0:00:17.3]} 59. Ne5 {[%clk 0:00:04.8]} 59... Ra1+ {[%clk 0:00:16.3]} 60.
Ke2 {[%clk 0:00:04.8]} 60... Bb7 {[%clk 0:00:15.3]} 61. c5 {[%clk 0:00:04.9]}
61... Ba6+ {[%clk 0:00:14.7]} 62. Kf3 {[%clk 0:00:05.3]} 62... Ra3+ {[%clk
0:00:14]} 63. Kf4 {[%clk 0:00:04.9]} 63... Rxh3 {[%clk 0:00:13.4]} 64. c6 {[%clk
0:00:04.7]} 64... Rh2 {[%clk 0:00:12.9]} 65. Ndf3 {[%clk 0:00:02.8]} 65... Rc2
{[%clk 0:00:12.4]} 66. Ke4 {[%clk 0:00:03.3]} 66... Bb5 {[%clk 0:00:11.2]} 67.
Ne1 {[%clk 0:00:01.6]} 67... Rxc6 {[%clk 0:00:08.2]} 0-1